bitfinex/quotes_BTCUSD_20251202
["timestamp","ask_amount","ask_price","bid_price","bid_amount"]
[1764680266410,0.08575006,87390.0,87387.0,0.01144334]
[1764680266627,0.08575006,87390.0,87389.0,0.22886175]
[1764680268264,0.08675006,87390.0,87389.0,0.22886175]
[1764680268687,0.08675006,87390.0,87387.0,0.01144334]
[1764680268883,0.31560945,87390.0,87387.0,0.01144334]
[1764680269099,0.3270524,87390.0,87387.0,0.01144334]
[1764680269518,0.3270524,87390.0,87387.0,0.24031001]
[1764680270152,0.3260524,87390.0,87387.0,0.24031001]
[1764680270311,0.3260524,87390.0,87387.0,0.01144334]
[1764680270312,0.22886256,87389.0,87387.0,0.01144334]
[1764680270836,0.22886256,87389.0,87387.0,0.24030955]
[1764680271264,0.08575006,87390.0,87388.0,0.22886387]
[1764680271472,0.31460958,87390.0,87388.0,0.22886387]
[1764680272298,0.22886206,87389.0,87387.0,0.2403095]
[1764680272506,0.09719301,87390.0,87388.0,0.22886437]
[1764680272708,0.09719301,87390.0,87389.0,0.01433]
[1764680272912,0.32605361,87390.0,87389.0,0.01433]
[1764680273558,0.32605361,87390.0,87308.0,0.20564588]
[1764680273559,0.2288827,87381.0,87377.0,0.24033676]
[1764680273759,0.2288827,87381.0,87374.0,0.24034572]
[1764680273956,0.2288827,87381.0,87375.0,0.01144492]
[1764680274188,0.2288827,87381.0,87374.0,0.24034572]
[1764680274388,0.2288827,87381.0,87375.0,0.01144492]
[1764680274588,0.2288827,87381.0,87374.0,0.01144505]
[1764680274947,0.2288827,87381.0,87373.0,0.22890306]
[1764680274948,0.2288827,87381.0,87372.0,0.01812]
[1764680275150,2.2288827,87381.0,87370.0,0.0002]
[1764680275348,2.25347197,87381.0,87370.0,0.0002]
[1764680275572,2.28071197,87381.0,87370.0,0.0002]
[1764680275776,2.28071197,87381.0,87370.0,0.24055676]
[1764680275977,2.28071197,87381.0,87370.0,0.01164557]
[1764680276181,2.28071197,87381.0,87380.0,0.00131473]
[1764680281151,2.71893793,87381.0,87380.0,0.00131473]
[1764680281573,2.75995793,87381.0,87380.0,0.00275472]
[1764680281802,2.73705793,87381.0,87380.0,0.00275472]
[1764680282019,2.75995793,87381.0,87380.0,0.00275472]
[1764680282565,2.75995793,87381.0,87380.0,0.00175472]
[1764680282755,2.76095793,87381.0,87380.0,0.00175472]
[1764680283007,2.75995793,87381.0,87380.0,0.00175472]
[1764680283179,2.79067995,87381.0,87380.0,0.00175472]
[1764680283381,2.79367995,87381.0,87380.0,0.00175472]
[1764680283619,2.82348092,87381.0,87380.0,0.00175472]
[1764680283794,2.82348092,87381.0,87370.0,0.0002]
[1764680283795,2.2518089,87371.0,87370.0,0.0002]
[1764680283951,2.40981869,87371.0,87370.0,0.0002]
[1764680284388,2.4144065,87371.0,87370.0,0.0002]
[1764680284793,2.29918054,87371.0,87370.0,0.0002]
[1764680284986,2.30018054,87371.0,87370.0,0.0002]
[1764680285652,2.30118054,87371.0,87370.0,0.0002]
[1764680289405,2.30118054,87371.0,87370.0,0.00051316]
[1764680290434,2.04768237,87371.0,87370.0,0.00051316]
[1764680291214,2.27659127,87371.0,87370.0,0.00051316]
[1764680294485,2.39181723,87371.0,87370.0,0.00051316]
[1764680294881,2.27659127,87371.0,87370.0,0.00051316]
[1764680298132,2.59959127,87371.0,87370.0,0.00051316]
[1764680298351,2.66469918,87371.0,87370.0,0.00051316]
[1764680299004,2.72722217,87371.0,87360.0,0.0002]
[1764680299204,2.66058516,87361.0,87360.0,0.0002]
[1764680299406,2.79393112,87361.0,87360.0,0.0002]
[1764680299620,2.79393112,87361.0,87360.0,0.00051322]
[1764680299933,2.79851956,87361.0,87360.0,0.00051322]
[1764680300328,2.82503981,87361.0,87360.0,0.00051322]
[1764680300568,2.43985875,87361.0,87360.0,0.00051322]
[1764680300806,0.0923385,87361.0,87360.0,0.22945094]
[1764680301490,0.08775006,87361.0,87360.0,0.22945094]
[1764680301718,0.08675006,87361.0,87360.0,0.22945094]
[1764680301919,0.001,87361.0,87360.0,0.27305094]
[1764680302071,0.03440862,87363.0,87362.0,0.22893248]
[1764680302274,2.24036059,87369.0,87362.0,0.24200248]
[1764680302475,2.22891786,87368.0,87364.0,0.01144636]
[1764680302674,2.0,87368.0,87365.0,0.24036884]
[1764680302853,2.0,87368.0,87366.0,0.22892165]
[1764680303058,2.0,87368.0,87367.0,0.22891938]
[1764680303648,7.456e-05,87371.0,87368.0,0.22891676]
[1764680303842,2.26331852,87370.0,87366.0,0.24036775]
[1764680304090,0.22891481,87369.0,87366.0,0.24036775]
[1764680305027,0.22891481,87369.0,87367.0,0.22891922]
[1764680305330,0.0344066,87370.0,87368.0,0.22891548]
[1764680305821,0.26331935,87370.0,87368.0,0.22891548]
[1764680305984,0.26331935,87370.0,87367.0,0.01144596]
[1764680306168,0.22891483,87369.0,87367.0,0.01244596]
[1764680306367,0.04585217,87370.0,87369.0,0.03118]
[1764680306775,0.0344066,87370.0,87369.0,0.03118]
[1764680306980,0.0344066,87370.0,87369.0,0.01307]
[1764680307219,0.26331812,87370.0,87368.0,0.001]
[1764680307420,0.24042931,87371.0,87368.0,0.001]
[1764680307627,0.22891414,87369.0,87368.0,0.001]
[1764680307940,0.24042931,87371.0,87368.0,0.001]
[1764680308139,0.22891414,87369.0,87368.0,0.001]
[1764680308285,7.456e-05,87371.0,87366.0,0.0114461]
[1764680308489,2.0,87370.0,87367.0,0.01244596]
[1764680308742,2.0,87370.0,87367.0,0.24136454]
[1764680308967,0.22891186,87370.0,87367.0,0.24136454]
[1764680309117,0.22891186,87370.0,87367.0,0.24036454]
[1764680309303,0.22891186,87370.0,87368.0,0.001]
[1764680309512,0.22891186,87370.0,87367.0,0.24036454]
[1764680309720,0.2289147,87369.0,87367.0,0.01144596]
[1764680309925,0.2289147,87369.0,87367.0,0.2403652]
[1764680310147,0.2289147,87369.0,87367.0,0.2413652]
[1764680310348,0.2289147,87369.0,87367.0,0.01244596]
[1764680311316,0.2289147,87369.0,87367.0,0.01144596]
[1764680311555,0.2289147,87369.0,87367.0,0.01244596]
[1764680311966,0.2289147,87369.0,87367.0,0.001]
[1764680311967,0.22891676,87368.0,87367.0,0.001]
[1764680312954,0.22892986,87363.0,87362.0,0.01332057]
[1764680313292,0.24037122,87365.0,87362.0,0.01332057]
[1764680313520,0.01144623,87365.0,87362.0,0.24225137]
[1764680313719,0.22891938,87367.0,87363.0,0.24037413]
[1764680313923,0.22892209,87366.0,87363.0,0.24037617]
[1764680314057,0.22892209,87366.0,87363.0,0.01144649]
[1764680314279,0.22892521,87365.0,87362.0,0.02476719]
[1764680314488,0.22892521,87365.0,87362.0,0.24225139]
[1764680314876,0.22892724,87364.0,87362.0,0.01332057]
[1764680315079,0.22892724,87364.0,87362.0,0.01532057]
[1764680315286,0.22892724,87364.0,87362.0,0.01332057]
[1764680315529,0.0114461,87366.0,87362.0,0.01169719]
[1764680315682,0.24036864,87366.0,87362.0,0.00125057]
[1764680315891,0.55192986,87363.0,87362.0,0.00025057]
[1764680316097,0.55192986,87363.0,87362.0,0.00225057]
[1764680316504,0.55192986,87363.0,87362.0,0.00025057]
[1764680316695,0.57734753,87363.0,87362.0,0.00025057]
[1764680317785,0.57734753,87363.0,87362.0,0.00125057]
[1764680318051,0.57734753,87363.0,87362.0,0.00025057]
[1764680318471,0.57734753,87363.0,87362.0,0.00125057]
[1764680319850,2.65431155,87363.0,87362.0,0.00125057]
[1764680320048,2.67721155,87363.0,87362.0,0.00125057]
[1764680320254,2.65431155,87363.0,87362.0,0.00125057]
[1764680320522,2.67721155,87363.0,87362.0,0.00125057]
[1764680320811,2.65431155,87363.0,87362.0,0.00125057]
[1764680321090,2.67721155,87363.0,87362.0,0.00125057]
[1764680321259,2.70787128,87363.0,87362.0,0.00125057]
[1764680321498,2.65431155,87363.0,87362.0,0.00125057]
[1764680321683,2.71779945,87363.0,87362.0,0.00025057]
[1764680322125,2.67721155,87363.0,87362.0,0.00025057]
[1764680322310,2.70791933,87363.0,87362.0,0.00025057]
[1764680322676,2.71091933,87363.0,87362.0,0.00025057]
[1764680323487,2.68021155,87363.0,87362.0,0.00025057]
[1764680325044,2.74273454,87363.0,87362.0,0.00025057]
[1764680325421,2.69833155,87363.0,87362.0,0.00025057]
[1764680326032,2.76085454,87363.0,87362.0,0.00025057]
[1764680326415,2.79156232,87363.0,87362.0,0.00025057]
[1764680326619,2.76085454,87363.0,87362.0,0.00025057]
[1764680327120,2.79153611,87363.0,87362.0,0.00025057]
[1764680328233,2.76085454,87363.0,87362.0,0.00025057]
[1764680328676,2.65731155,87363.0,87362.0,0.00025057]
[1764680328854,2.60492792,87363.0,87362.0,0.00025057]
[1764680329066,2.62304792,87363.0,87362.0,0.00025057]
[1764680329472,2.62304792,87363.0,87362.0,0.22918305]
[1764680329473,2.05299806,87363.0,87362.0,0.22918305]
[1764680329674,2.02841767,87363.0,87362.0,0.00025057]
[1764680330291,2.25734753,87363.0,87362.0,0.00025057]
[1764680330488,2.02741767,87363.0,87362.0,0.00025057]
[1764680330735,0.02741767,87363.0,87362.0,0.22918305]
[1764680330955,0.02641767,87363.0,87362.0,0.22918305]
[1764680331351,0.02741767,87363.0,87362.0,0.22918305]
[1764680332074,0.02741767,87363.0,87362.0,0.27469305]
[1764680332075,0.002,87363.0,87362.0,0.27469305]
[1764680333164,0.001,87363.0,87362.0,0.27469305]
[1764680334266,7.456e-05,87371.0,87362.0,0.27469305]
[1764680334267,7.456e-05,87371.0,87369.0,0.22891414]
[1764680334467,7.456e-05,87371.0,87370.0,0.03242]
[1764680334832,7.456e-05,87371.0,87370.0,0.28839152]
[1764680335020,7.456e-05,87371.0,87370.0,0.22891152]
[1764680335626,7.456e-05,87371.0,87368.0,0.24036236]
[1764680335830,7.456e-05,87371.0,87370.0,0.002]
[1764680336049,7.456e-05,87371.0,87369.0,0.22891414]
[1764680336397,7.456e-05,87371.0,87370.0,0.22891152]
[1764680337448,7.456e-05,87371.0,87370.0,0.27642152]
[1764680337853,7.456e-05,87371.0,87370.0,0.02045]
[1764680338051,7.456e-05,87371.0,87370.0,0.24936152]
[1764680338256,0.60863384,87371.0,87370.0,0.002]
[1764680338455,2.67418457,87371.0,87370.0,0.002]
[1764680338663,2.67877262,87371.0,87370.0,0.002]
[1764680339180,0.22892986,87363.0,87360.0,0.0002]
[1764680339478,2.22892986,87363.0,87360.0,0.0002]
[1764680340267,2.34415582,87363.0,87360.0,0.0002]
[1764680340500,2.34515582,87363.0,87360.0,0.0002]
[1764680341091,2.23092986,87363.0,87360.0,0.0002]
[1764680341940,2.55392986,87363.0,87360.0,0.0002]
[1764680343944,2.002,87363.0,87360.0,0.0002]
[1764680344144,2.55392986,87363.0,87360.0,0.0002]
[1764680344593,2.23092986,87363.0,87360.0,0.0002]
[1764680345002,2.22992986,87363.0,87360.0,0.0002]
[1764680345150,2.22892986,87363.0,87362.0,0.00125057]
[1764680347474,7.456e-05,87371.0,87367.0,0.22891938]
[1764680347670,7.456e-05,87371.0,87362.0,0.00125057]
[1764680347671,0.22892986,87363.0,87362.0,0.00125057]
[1764680348046,2.64503995,87363.0,87362.0,0.00125057]
[1764680348215,2.66957908,87363.0,87362.0,0.00125057]
[1764680348417,2.78480504,87363.0,87362.0,0.00125057]
[1764680348625,2.62168899,87363.0,87362.0,0.00025057]
[1764680348773,2.70743905,87363.0,87362.0,0.00025057]
[1764680349166,2.68037905,87363.0,87362.0,0.00025057]
[1764680349360,2.70886739,87363.0,87362.0,0.00025057]
[1764680349944,2.70986739,87363.0,87362.0,0.00025057]
[1764680350143,2.82309335,87363.0,87362.0,0.00025057]
[1764680351496,2.70886739,87363.0,87362.0,0.00025057]
[1764680353970,2.70427905,87363.0,87362.0,0.00025057]
[1764680355578,2.66321905,87363.0,87362.0,0.00025057]
[1764680355787,2.68137905,87363.0,87362.0,0.00025057]
[1764680356366,2.66321905,87363.0,87362.0,0.00025057]
[1764680358237,2.68453242,87363.0,87362.0,0.00025057]
[1764680359367,2.7739256,87363.0,87362.0,0.00025057]
[1764680359701,2.80460245,87363.0,87362.0,0.00025057]
[1764680359941,2.80919091,87363.0,87362.0,0.00025057]
[1764680360722,2.80919091,87363.0,87362.0,0.04353057]
[1764680360723,0.001,87363.0,87362.0,0.04353057]
[1764680360923,0.001,87363.0,87362.0,0.27246305]
[1764680361126,0.001,87363.0,87362.0,0.29536305]
[1764680361763,7.456e-05,87371.0,87369.0,0.22891414]
[1764680361974,7.456e-05,87371.0,87370.0,0.24601152]
[1764680362109,7.456e-05,87371.0,87370.0,0.27219152]
[1764680362310,7.456e-05,87371.0,87370.0,0.29509152]
[1764680362713,7.456e-05,87371.0,87370.0,0.27219152]
[1764680362975,7.456e-05,87371.0,87370.0,0.04328]
[1764680363138,7.456e-05,87371.0,87370.0,0.27219152]
[1764680363884,7.456e-05,87371.0,87370.0,0.27519152]
[1764680364170,7.456e-05,87371.0,87370.0,0.27219152]
[1764680364625,7.456e-05,87371.0,87370.0,0.27419152]
[1764680369798,7.456e-05,87371.0,87370.0,0.29709152]
[1764680369955,7.456e-05,87371.0,87370.0,0.59719152]
[1764680370277,7.456e-05,87371.0,87370.0,0.61809152]
[1764680370638,7.456e-05,87371.0,87370.0,0.62109152]
[1764680374003,7.456e-05,87371.0,87370.0,1.10684158]
[1764680374618,7.456e-05,87371.0,87370.0,1.16936457]
[1764680388941,7.456e-05,87371.0,87370.0,1.14646457]
[1764680389141,7.456e-05,87371.0,87370.0,1.16936457]
[1764680389544,7.456e-05,87371.0,87370.0,1.14646457]
[1764680389748,7.456e-05,87371.0,87370.0,1.16936457]
[1764680390614,7.456e-05,87371.0,87370.0,1.16736457]
[1764680391019,7.456e-05,87371.0,87370.0,1.16936457]
[1764680394593,7.456e-05,87371.0,87370.0,0.74646457]
[1764680394835,7.456e-05,87371.0,87370.0,0.76936457]
[1764680394954,7.456e-05,87371.0,87370.0,1.16936457]
[1764680395155,7.456e-05,87371.0,87370.0,0.69331152]
[1764680395437,7.456e-05,87371.0,87370.0,0.31621152]
[1764680401284,7.456e-05,87371.0,87370.0,0.29809152]
[1764680401444,7.456e-05,87371.0,87370.0,0.31621152]
[1764680408291,7.456e-05,87371.0,87370.0,0.71621152]
[1764680408653,4.56e-06,87371.0,87370.0,1.10173451]
[1764680408959,0.00138907,87399.0,87398.0,0.22883818]
[1764680409269,0.00138907,87399.0,87398.0,0.24536576]
[1764680409395,0.00138907,87399.0,87398.0,0.29159576]
[1764680409613,0.01143955,87416.0,87398.0,0.29159576]
[1764680409614,0.03067685,87426.0,87419.0,0.22878321]
[1764680409911,2.08575006,87427.0,87418.0,0.01143929]
[1764680410123,0.01143837,87425.0,87420.0,0.01143902]
[1764680410325,0.01143863,87423.0,87418.0,0.01143929]
[1764680410446,0.01143863,87423.0,87419.0,0.01143916]
[1764680410673,0.24021166,87423.0,87419.0,0.01143916]
[1764680410914,0.01143876,87422.0,87417.0,0.02306942]
[1764680411133,0.24021483,87422.0,87417.0,0.25185733]
[1764680411290,0.24021149,87423.0,87419.0,0.01143916]
[1764680411493,0.24121149,87423.0,87419.0,0.24022193]
[1764680411714,0.22877606,87422.0,87419.0,0.01143916]
[1764680412013,0.22877606,87422.0,87419.0,0.24022171]
[1764680412221,0.22877606,87422.0,87419.0,0.01143916]
[1764680412383,0.22877606,87422.0,87419.0,0.24022105]
[1764680412796,0.01143863,87423.0,87420.0,0.01143902]
[1764680413007,0.24021171,87423.0,87420.0,0.24021949]
[1764680413202,0.001,87422.0,87420.0,0.24021949]
[1764680413616,0.24020332,87426.0,87422.0,0.2287746]
[1764680413818,0.001,87423.0,87422.0,0.22877517]
[1764680414021,0.001,87423.0,87422.0,0.22877536]
[1764680414241,0.01143837,87425.0,87422.0,0.24021412]
[1764680414689,0.01143837,87425.0,87424.0,0.01644]
[1764680415233,2.0,87429.0,87427.0,0.22876228]
[1764680415381,2.0,87436.0,87434.0,0.01143719]
[1764680415591,2.08575006,87435.0,87434.0,0.24018115]
[1764680415792,2.0,87439.0,87438.0,0.22873117]
[1764680416124,2.0,87445.0,87439.0,0.01644]
[1764680416316,0.24015204,87445.0,87440.0,0.24016357]
[1764680416464,0.24015394,87444.0,87440.0,0.01143641]
[1764680416818,0.24015394,87444.0,87441.0,0.01163]
[1764680417050,0.2287207,87443.0,87441.0,0.01163]
[1764680417195,0.2287207,87443.0,87441.0,0.03496]
[1764680417395,0.2287207,87443.0,87442.0,0.01644]
[1764680417968,0.22872303,87442.0,87441.0,0.01163]
[1764680419468,0.001,87443.0,87441.0,0.01163]
[1764680419696,0.001,87443.0,87442.0,0.01644]
[1764680419888,0.01181997,87445.0,87442.0,0.01644]
[1764680420068,0.24053516,87445.0,87444.0,0.01644]
[1764680420441,0.24053516,87445.0,87441.0,0.01163]
[1764680420442,0.2287215,87443.0,87441.0,0.01163]
[1764680420651,0.001,87443.0,87441.0,0.01163]
[1764680420846,0.22972087,87443.0,87441.0,0.01163]
[1764680421077,0.22872303,87442.0,87441.0,0.01163]
[1764680421613,0.24015511,87444.0,87441.0,0.01163]
[1764680421859,0.2287207,87443.0,87441.0,0.01163]
[1764680422275,0.00134522,87442.0,87441.0,0.01163]
[1764680422667,0.00134522,87442.0,87441.0,0.02807]
[1764680423242,0.00134522,87442.0,87441.0,0.0514]
[1764680423426,0.00134522,87442.0,87441.0,0.28012565]
[1764680423638,0.00134522,87442.0,87441.0,0.30302565]
[1764680424462,0.00134522,87442.0,87441.0,0.28012565]
[1764680429833,0.00134522,87442.0,87441.0,0.30302565]
[1764680430026,0.00134522,87442.0,87441.0,0.28979565]
[1764680431637,0.00134522,87442.0,87440.0,0.01163]
[1764680431843,0.00134522,87442.0,87429.0,0.01163]
[1764680431844,0.22873929,87436.0,87429.0,0.01163]
[1764680432059,0.0114368,87437.0,87431.0,0.25830441]
[1764680432273,0.01143693,87436.0,87431.0,0.02955759]
[1764680432525,0.24017841,87435.0,87431.0,0.02955759]
[1764680432756,0.24017841,87435.0,87430.0,0.01143772]
[1764680432757,0.24018116,87434.0,87430.0,0.01143772]
[1764680432951,0.01143719,87434.0,87430.0,0.24019215]
[1764680433142,0.24018128,87434.0,87430.0,0.24019215]
[1764680433377,0.24018128,87434.0,87429.0,0.01163]
[1764680433378,0.01143732,87433.0,87429.0,0.01163]
[1764680433510,0.24018343,87435.0,87430.0,0.24019116]
[1764680433714,0.01143719,87434.0,87431.0,0.01143759]
[1764680433923,0.2401832,87434.0,87430.0,0.24019172]
[1764680434119,0.2287468,87433.0,87429.0,0.01163]
[1764680434317,0.24018412,87433.0,87429.0,0.01163]
[1764680434536,0.01143745,87432.0,87429.0,0.01163]
[1764680434974,0.22878366,87419.0,87411.0,0.01278]
[1764680435144,0.01143994,87413.0,87406.0,0.01144086]
[1764680435341,0.24023972,87413.0,87408.0,0.0114406]
[1764680435565,0.24024307,87412.0,87408.0,0.0114406]
[1764680435766,0.24024671,87411.0,87406.0,0.24025553]
[1764680436107,0.01143994,87413.0,87406.0,0.24025553]
[1764680436108,0.24023965,87413.0,87409.0,0.2288074]
[1764680436454,0.24023965,87413.0,87410.0,0.22880672]
[1764680436654,0.24023965,87413.0,87406.0,0.24025553]
[1764680436655,0.24022788,87417.0,87413.0,0.22879684]
[1764680436993,0.22879441,87415.0,87412.0,0.02945007]
[1764680437353,0.32598216,87416.0,87413.0,0.22879838]
[1764680437557,0.08575006,87416.0,87414.0,0.2287963]
[1764680437781,0.08575006,87416.0,87413.0,0.24023832]
[1764680437983,0.01143981,87414.0,87411.0,0.24024298]
[1764680438182,0.22880126,87413.0,87409.0,0.24024962]
[1764680438542,0.22880126,87413.0,87410.0,0.22880535]
[1764680438745,0.22880126,87413.0,87409.0,0.24024962]
[1764680438947,0.01143994,87413.0,87409.0,0.24024977]
[1764680439168,0.24024017,87413.0,87409.0,0.24024977]
[1764680439604,0.24024017,87413.0,87410.0,0.22880485]
[1764680440018,0.24024017,87413.0,87410.0,0.24024518]
[1764680440225,0.24024307,87412.0,87409.0,0.01144046]
[1764680440427,0.24024307,87412.0,87409.0,0.24024756]
[1764680440677,0.24024307,87412.0,87409.0,0.01144046]
[1764680440849,0.24024604,87411.0,87408.0,0.0114406]
[1764680441055,0.24024307,87412.0,87409.0,0.24024985]
[1764680441269,0.24024307,87412.0,87410.0,0.22880622]
[1764680441682,0.22880185,87412.0,87409.0,0.24024985]
[1764680441931,0.24023928,87413.0,87410.0,0.24024506]
[1764680442094,0.24024314,87412.0,87409.0,0.24024985]
[1764680442310,0.24024314,87412.0,87409.0,0.01144046]
[1764680442516,0.25690083,87410.0,87403.0,0.24160388]
[1764680442762,0.01144073,87407.0,87404.0,0.01144112]
[1764680443164,0.24025557,87407.0,87403.0,0.25304373]
[1764680443343,0.24025557,87407.0,87404.0,0.24026325]
[1764680443540,0.24025,87409.0,87405.0,0.01144099]
[1764680443746,0.24025,87409.0,87405.0,0.24025999]
[1764680444389,0.2402543,87408.0,87405.0,0.01144099]
[1764680444602,0.2402543,87408.0,87404.0,0.01244112]
[1764680444805,0.55181986,87405.0,87404.0,0.001]
[1764680445896,0.01144243,87394.0,87388.0,0.01278]
[1764680446080,0.24029933,87391.0,87388.0,8.758e-05]
[1764680446278,0.2288593,87390.0,87388.0,8.758e-05]
[1764680447001,0.24030105,87391.0,87388.0,8.758e-05]
[1764680447201,0.22886043,87390.0,87388.0,8.758e-05]
[1764680447518,0.001,87390.0,87388.0,8.758e-05]
[1764680447695,0.22886175,87389.0,87388.0,8.758e-05]
[1764680448315,2.55186175,87389.0,87388.0,8.758e-05]
[1764680448687,2.22886175,87389.0,87388.0,8.758e-05]
[1764680449450,2.55186175,87389.0,87388.0,8.758e-05]
[1764680450778,2.55286175,87389.0,87388.0,8.758e-05]
[1764680453805,0.001,87389.0,87388.0,0.27345195]
[1764680454933,0.001,87389.0,87388.0,0.29635195]
[1764680455132,0.00025037,87407.0,87398.0,0.22883751]
[1764680455326,0.00025037,87407.0,87405.0,0.22881821]
[1764680455681,0.0116911,87407.0,87401.0,0.01144151]
[1764680455903,0.08575006,87402.0,87401.0,0.01144151]
[1764680456385,0.08575006,87402.0,87401.0,0.25828184]
[1764680457000,0.00025037,87407.0,87406.0,0.22881724]
[1764680457573,0.00225037,87407.0,87406.0,0.22881724]
[1764680457962,0.00225037,87407.0,87405.0,0.22881756]
[1764680458215,0.00225037,87407.0,87406.0,0.22881724]
[1764680458418,0.00225037,87407.0,87406.0,0.24682724]
[1764680458921,0.00025037,87407.0,87406.0,0.24682724]
[1764680459077,0.00225037,87407.0,87406.0,0.24682724]
[1764680459630,0.00325037,87407.0,87406.0,0.24682724]
[1764680459828,0.00325037,87407.0,87406.0,0.27331724]
[1764680460164,0.00325037,87407.0,87406.0,0.29621724]
[1764680460411,0.00325037,87407.0,87406.0,0.27331724]
[1764680460822,0.00225037,87407.0,87406.0,0.27331724]
[1764680461047,0.00225037,87407.0,87406.0,0.29621724]
[1764680461822,0.00025037,87407.0,87406.0,0.29621724]
[1764680462051,0.00025037,87407.0,87406.0,0.27331724]
[1764680462825,0.00025037,87407.0,87406.0,0.27531724]
[1764680463022,0.00025037,87407.0,87406.0,0.27631724]
[1764680464809,0.00025037,87407.0,87406.0,0.29921724]
[1764680465030,0.00025037,87407.0,87406.0,0.62221724]
[1764680466292,0.00025037,87407.0,87406.0,0.29921724]
[1764680466430,0.00025037,87407.0,87406.0,0.31733724]
[1764680466641,0.00025037,87407.0,87406.0,0.29443724]
[1764680469947,0.00025037,87407.0,87406.0,0.31733724]
[1764680471822,0.22878845,87417.0,87406.0,0.03913]
[1764680471970,0.08575006,87419.0,87406.0,0.02112]
[1764680471971,0.2402495,87410.0,87406.0,0.02112]
[1764680472177,0.24025011,87409.0,87406.0,0.003]
[1764680472386,0.22881266,87408.0,87406.0,0.003]
[1764680472622,0.01144112,87404.0,87400.0,0.02471164]
[1764680472823,0.01144125,87403.0,87400.0,0.01327]
[1764680473022,0.01144125,87403.0,87399.0,0.01812]
[1764680473266,0.24026723,87403.0,87399.0,0.01812]
[1764680473490,0.01144125,87403.0,87399.0,0.02956177]
[1764680473674,0.22883557,87399.0,87392.0,0.01144269]
[1764680473971,0.26834247,87400.0,87388.0,8.758e-05]
[1764680473972,0.0114423,87395.0,87388.0,8.758e-05]
[1764680474156,0.22885966,87390.0,87388.0,8.758e-05]
[1764680474349,0.22886175,87389.0,87388.0,8.758e-05]
[1764680475330,0.24028628,87396.0,87388.0,8.758e-05]
[1764680475531,0.22883557,87399.0,87391.0,0.01144282]
[1764680475753,0.24029004,87395.0,87394.0,0.01661]
[1764680475960,0.0114423,87395.0,87394.0,0.01661]
[1764680476128,0.22884866,87394.0,87390.0,0.24030171]
[1764680476539,0.24029109,87394.0,87391.0,0.01144282]
[1764680476784,0.01144217,87396.0,87392.0,0.24029658]
[1764680477100,0.01144217,87396.0,87393.0,0.22885057]
[1764680477680,0.24028562,87396.0,87393.0,0.22885018]
[1764680478062,0.24028567,87396.0,87393.0,0.22885018]
[1764680478375,0.24028567,87396.0,87391.0,0.01144282]
[1764680478376,0.0114423,87395.0,87389.0,0.01144308]
[1764680478540,0.01144256,87393.0,87389.0,0.22886175]
[1764680479243,0.24028877,87395.0,87391.0,0.24029685]
[1764680479966,0.24028877,87395.0,87392.0,0.22885359]
[1764680480178,0.01144243,87394.0,87389.0,0.01144308]
[1764680480381,0.01144217,87396.0,87393.0,0.01144256]
[1764680480510,0.22884724,87395.0,87391.0,0.01144282]
[1764680480716,0.24028954,87395.0,87391.0,0.24029715]
[1764680481141,0.0114423,87395.0,87391.0,0.24029715]
[1764680481522,0.22885,87394.0,87391.0,0.24029715]
[1764680482015,0.24029243,87394.0,87390.0,0.24030173]
[1764680482660,0.24028874,87395.0,87391.0,0.24029909]
[1764680483104,0.55186175,87389.0,87388.0,8.758e-05]
[1764680483306,2.56998175,87389.0,87388.0,8.758e-05]
[1764680483578,2.60480175,87389.0,87388.0,8.758e-05]
[1764680483783,2.33492,87389.0,87388.0,8.758e-05]
[1764680483991,0.24029933,87391.0,87388.0,8.758e-05]
[1764680483992,0.01144282,87391.0,87388.0,8.758e-05]
[1764680484207,0.32038655,87389.0,87388.0,8.758e-05]
[1764680484427,2.32138655,87389.0,87388.0,8.758e-05]
[1764680486099,0.001,87389.0,87388.0,8.758e-05]
[1764680486303,0.001,87389.0,87388.0,0.27024195]
[1764680487567,2.0,87401.0,87398.0,0.22883752]
[1764680488003,2.0,87401.0,87399.0,0.2288332]
[1764680488143,2.22883148,87401.0,87398.0,0.22883752]
[1764680488333,0.24027552,87400.0,87395.0,0.01192]
[1764680488528,0.22883563,87399.0,87396.0,0.01144217]
[1764680488843,0.01144177,87399.0,87396.0,0.01144217]
[1764680489081,0.01144177,87399.0,87396.0,0.24028318]
[1764680489311,0.01144177,87399.0,87395.0,0.0233623]
[1764680489466,0.22883826,87398.0,87395.0,0.0233623]
[1764680489664,0.01144177,87399.0,87395.0,0.0233623]
[1764680489665,0.01144177,87399.0,87395.0,0.25220574]
[1764680489963,0.24027784,87399.0,87396.0,0.24028376]
[1764680490367,0.01144177,87399.0,87397.0,0.22884056]
[1764680490565,0.01144269,87392.0,87388.0,8.758e-05]
[1764680490777,0.22886175,87389.0,87388.0,8.758e-05]
[1764680493106,0.22986175,87389.0,87388.0,8.758e-05]
[1764680493531,0.001,87389.0,87388.0,0.27397195]
[1764680493884,0.001,87389.0,87388.0,0.29687195]
[1764680494468,0.01144112,87404.0,87401.0,0.22882898]
[1764680494667,0.10296579,87405.0,87402.0,0.22882756]
[1764680494898,0.01144256,87393.0,87380.0,0.01144426]
[1764680495094,0.24027734,87399.0,87372.0,0.03898]
[1764680495095,2.0915248,87389.0,87372.0,0.03898]
[1764680495305,2.32038655,87389.0,87377.0,0.24033602]
[1764680495723,2.32038655,87389.0,87388.0,0.00108758]
[1764680495954,2.32038655,87389.0,87388.0,8.758e-05]
[1764680496289,2.32138655,87389.0,87388.0,8.758e-05]
[1764680496726,2.32138655,87389.0,87388.0,0.00108758]
[1764680497186,2.32138655,87389.0,87388.0,8.758e-05]
[1764680497586,0.001,87389.0,87388.0,0.01718758]
[1764680498045,0.22986175,87389.0,87388.0,0.01718758]
[1764680498192,0.22886574,87388.0,87386.0,0.00284758]
[1764680498405,0.24130483,87389.0,87386.0,0.00284758]
[1764680498618,0.32039124,87388.0,87386.0,0.00284758]
[1764680498817,0.01144308,87389.0,87386.0,0.00284758]
[1764680499056,0.22886437,87388.0,87386.0,0.00284758]
[1764680499255,0.22884451,87396.0,87388.0,0.0171]
[1764680499451,0.22884451,87396.0,87389.0,0.0171]
[1764680499452,0.0915248,87391.0,87389.0,0.0171]
[1764680499651,0.0915248,87391.0,87386.0,0.24315956]
[1764680499852,0.01144295,87390.0,87386.0,0.00284758]
[1764680500053,0.22887803,87383.0,87375.0,0.02956492]
[1764680500250,0.01144439,87379.0,87375.0,0.01812]
[1764680500554,0.01144452,87378.0,87375.0,0.01812]
[1764680500795,0.01144452,87378.0,87373.0,0.24034738]
[1764680500796,0.24033882,87377.0,87373.0,0.24034738]
[1764680501038,0.01144479,87376.0,87372.0,0.02336531]
[1764680501240,0.24034293,87376.0,87372.0,0.2522696]
[1764680501569,0.24034293,87376.0,87372.0,0.02336531]
[1764680501790,0.24034293,87376.0,87373.0,0.22890296]
[1764680501993,0.2288985,87375.0,87372.0,0.25227139]
[1764680502201,0.01144492,87375.0,87371.0,0.00135798]
[1764680502436,0.22890628,87372.0,87371.0,0.00135798]
[1764680502811,0.10296959,87376.0,87371.0,0.00135798]
[1764680502986,0.011444,87382.0,87375.0,0.02986]